{"text_format":"1","workbook":"xlsx","n_sheets":4,"sheets":["Mapa_EstrategicoSectorial","Estructura_Planeación_Estr","Plan de Accion Sectorial","Listas"],"not_rendered":{"charts":0,"images":7,"macros":1,"external_links":2,"defined_names":19,"comments":1,"pivot_tables":0},"unopened":[],"bounds":{"document_bytes":16777216,"sheet_cells":100000,"rows_first":2000,"rows_last":500,"rows_between":2000,"halvings":0,"cell_chars":16384,"cell_head_chars":4096},"cells_cut":0,"cells_raw":0,"read":"whole","date_system":"1900"}

{"sheet":"Mapa_EstrategicoSectorial","index":0,"n_rows":5,"n_cols":1,"rows_kept":5,"cut":false,"hidden":true,"merged":[[3,1,3,12],[4,0,4,12]]}
[]
[]
[]
[]
["Versión 1 aprobada mediante Comité Sectorial de Gestión y Desempeño - 31 de enero 2019"]

{"sheet":"Estructura_Planeación_Estr","index":1,"n_rows":70,"n_cols":10,"rows_kept":70,"cut":false,"hidden":true,"merged":[[69,1,69,3],[64,2,64,3],[55,2,55,3],[56,2,56,3],[57,2,57,3],[58,2,58,3],[59,2,59,3],[68,2,68,3],[60,2,60,3],[61,2,61,3],[62,2,62,3],[63,2,63,3],[51,2,51,3],[45,2,45,3],[65,2,65,3],[66,2,66,3],[67,2,67,3],[52,2,52,3],[53,2,53,3],[54,2,54,3],[46,2,46,3],[47,2,47,3],[48,2,48,3],[49,2,49,3],[50,2,50,3],[41,2,41,3],[42,2,42,3],[43,2,43,3],[44,2,44,3],[7,9,10,9],[20,9,23,9],[14,9,17,9],[25,1,25,9],[36,1,36,9],[38,2,38,3],[39,2,39,3],[40,2,40,3]]}
[]
[]
[]
[]
[]
[]
[null,null,null,null,null,2019,2020,2021,2022,"Avance Plan"]
[null,null,null,null,"Objetivos estratégicos",1,1,1]
[null,null,null,null,"Iniciativas estrategicas",0,0,1]
[null,null,null,null,"Indicadores PND",16,15,18]
[null,null,null,null,"Tareas del Plan de Acción Anual",0,0,10]
[]
[]
[null,null,null,null,null,2019,2020,2021,2022,"Avance Plan"]
[null,null,null,null,"Objetivos estratégicos",3,3,3]
[null,null,null,null,"Iniciativas estrategicas",7,7,7]
[null,null,null,null,"Indicadores PES",8,9,9]
[null,null,null,null,"Tareas del Plan de Acción Anual",155,103,133]
[]
[null,null,null,null,null,2019,2020,2021,2022,"Avance Plan"]
[null,null,null,null,"Objetivos estratégicos",2,2,2]
[null,null,null,null,"Iniciativas estrategicas",5,5,5]
[null,null,null,null,"Indicadores PES",6,5,5]
[null,null,null,null,"Tareas del Plan de Acción Anual",133,135,207]
[]
[null,"TOTALES"]
[]
[null,null,null,null,null,2019,2020,2021,2022]
[null,null,null,null,"Objetivos estratégicos",{"$f":"+F8+F15+F21","v":6},6,6]
[null,null,null,null,"Iniciativas estrategicas",12,12,13]
[null,null,null,null,"Indicadores PND",{"$f":"+F10","v":16},{"$f":"+G10","v":15},{"$f":"+H10","v":18}]
[null,null,null,null,"Indicadores PES",{"$f":"+F17+F23","v":14},{"$f":"+G17+G23","v":14},{"$f":"+H17+H23","v":14}]
[null,null,null,null,"Tareas del Plan de Acción Anual",{"$f":"+F11+F18+F24","v":288},{"$f":"+G11+G18+G24","v":238},{"$f":"+H11+H18+H24","v":350}]
[]
[]
[]
[null,"Despliegue tareas  - Entidades"]
[]
[null,"N°","ENTIDAD",null,2019,2020,"2021(Versión inicial)",2021,2022,"Total"]
[null,1,"BANCO AGRARIO",null,"N/A","N/A",0,11,null,{"$f":"SUM(E40:I40)","v":11}]
[null,2,"BANCOLDEX",null,"N/A","N/A",0,10,null,10]
[null,3,"CGN - CONTADURÍA",null,14,12,13,13,null,52]
[null,4,"CISA",null,10,12,11,11,null,44]
[null,5,"COLJUEGOS",null,6,12,11,11,null,40]
[null,6,"DIAN",null,21,12,11,11,null,55]
[null,7,"ENTERRITORIO",null,"N/A","N/A",0,11,null,11]
[null,8,"FDN",null,9,8,8,8,null,33]
[null,9,"FIDUAGRARIA",null,"N/A","N/A",0,11,null,11]
[null,10,"FIDUCOLDEX",null,"N/A","N/A",0,9,null,9]
[null,11,"FIDUPREVISORA",null,17,12,11,11,null,51]
[null,12,"FINAGRO",null,"N/A","N/A",0,11,null,11]
[null,13,"FINDETER",null,37,12,11,11,null,71]
[null,14,"FOGACOOP",null,11,10,10,10,null,41]
[null,15,"FOGAFÍN",null,5,11,11,11,null,38]
[null,16,"FONDO ADAPTACIÓN",null,10,12,11,11,null,44]
[null,17,"FNA",null,"N/A","N/A",0,11,null,11]
[null,18,"FNG",null,"N/A","N/A",0,11,null,11]
[null,19,"GRUPO BICENTENARIO",null,"N/A","N/A",0,12,null,12]
[null,20,"ICETEX",null,"N/A","N/A",0,12,null,12]
[null,21,"ITRC",null,16,12,11,11,null,50]
[null,22,"MHCP",null,29,20,24,24,null,97]
[null,23,"POSITIVA",null,6,12,11,11,null,40]
[null,24,"PREVISORA",null,10,11,10,10,null,41]
[null,25,"SAE",null,18,11,11,11,null,51]
[null,26,"SUPERFINANCIERA",null,13,12,13,13,null,51]
[null,27,"SUPERSOLIDARIA",null,16,12,11,11,null,50]
[null,28,"UGPP",null,28,12,13,13,null,66]
[null,29,"UIAF",null,6,12,11,9,null,38]
[null,30,"URF",null,6,11,11,11,null,39]
[null,"TOTAL",null,null,{"$f":"SUM(E40:E69)","v":288},238,234,341,0,1101]

{"sheet":"Plan de Accion Sectorial","index":2,"n_rows":24,"n_cols":33,"rows_kept":24,"cut":false,"hidden":false,"merged":[[8,31,9,31],[7,27,7,31],[8,27,9,27],[8,28,9,28],[8,25,9,25],[7,25,7,26],[5,6,5,7],[7,10,9,10],[7,3,9,3],[8,29,9,29],[8,30,9,30],[7,4,9,4],[7,5,9,5],[7,6,9,6],[7,7,9,7],[7,8,9,8],[8,17,8,18],[7,2,9,2],[8,26,9,26],[5,10,5,12],[7,23,9,23],[7,1,9,1],[5,1,5,2],[7,24,9,24],[7,11,9,11],[7,12,9,12],[7,14,9,14],[7,13,9,13],[7,15,7,22],[8,15,8,16],[7,9,9,9],[8,19,8,20],[8,21,8,22]]}
[]
[]
[]
[]
[]
[null,"Versión: ",null,1,null,"Fecha aprobación: ","17 de diciembre de 2021",null,null,"Fecha publicación de la actualización: "]
[]
[null,"N°","Perspectiva","Objetivo Estratégico","Iniciativa Estratégica","Entidad ","Categoría","Responsable de aprobar\n(Jefe delegado de entidad - Hacienda Líder Sectorial)","Nombre de la Tarea","Descripción de la Tarea y Entregable","Estado SMGI 2021","Responsable de documentar","Colaboradores en las entidades (Recurso SMGI)","Dependencia responsable","Entidades participantes","Año de ejecución de la actividad",null,null,null,null,null,null,null,"Fuente de información de la tarea","Pacto PND 2018-2022","Modelo Integrado de Planeación y Gestión",null,"Control de cambios"]
[null,null,null,null,null,null,null,null,null,null,null,null,null,null,null,2019,null,2020,null,2021,null,2022,null,null,null,"Dimensión ","Políticas","Cambio 1","Cambio 2","Cambio 3","Cambio 4","Observaciones"]
[null,null,null,null,null,null,null,null,null,null,null,null,null,null,null,"Inicial","final","Inicial","final","Inicial","final","Inicial","final"]
[null,null,"GESTIÓN PARA EL RESULTADO","GR1. Fortalecer las relaciones de las entidades del Sector Hacienda con sus grupos de valor ","SH.Ini.2019.2022.GR1.001 Promover el seguimiento y mejora continua de las acciones que se realizan para fortalecer las relaciones con los grupos de valor en las entidades del Sector Hacienda.","FONDO NACIONAL DEL AHORRO","FNA> PAA 2022> Relacionamiento con el Ciudadano","Kennicher Arias Roa","Verificar que los tramites inscritos en el SUIT, estén cargados en el portal GOV.CO, con el fin de actualizar, socializar y potencializarlo a través de diferentes canales de comunicación.","Se revisará el estado de avance de la incorporación de los trámites en el portal GOV.CO; y se divulgará los beneficios a través de los diferentes canales de comunicación.",null,"Angelica María Zapata","Helga Viviana Valencia  \nJosé Antonio  Dueñas\nMartha Milena Ramirez ","SAC","N/A","-","-","-","-","-","-","2022-01-01","2022-12-31","Open Hacienda","N/A","Gestión con valores para el resultado (Ventanilla hacia afuera)","Racionalización de Trámites"]
[null,null,"GESTIÓN PARA EL RESULTADO","GR1. Fortalecer las relaciones de las entidades del Sector Hacienda con sus grupos de valor ","SH.Ini.2019.2022.GR1.001 Promover el seguimiento y mejora continua de las acciones que se realizan para fortalecer las relaciones con los grupos de valor en las entidades del Sector Hacienda.","FONDO NACIONAL DEL AHORRO","FONDO NACIONAL DEL AHORRO> PAA 2022> Relacionamiento con el Ciudadano","Kennicher Arias Roa","Actualizar el portafolio de servicios de cada entidad y ponerlo a disposición de los grupos de valor en los diferentes canales de comunicación ","De acuerdo a la misionalidad de la entidad actualizar el portafolio de productos y servicios, y gestionar la publicación en los diferentes canales de comunicación, con el fin de orientar a los grupos de valor, y que tenga criterios de accesibilidad, lenguaje claro y gobierno abierto.","N/A","Angelica María Zapata","Helga Viviana Valencia  \nJosé Antonio  Dueñas\nMartha Milena Ramirez ","Oficina de Planeación ","N/A","-","-","-","-","-","-","2022-05-01","2022-12-31","Open Hacienda","N/A","Gestión con valores para el resultado (Ventanilla hacia afuera)","Transparencia -Participación Ciudadana - Racionalización de Trámites - Servicio al Ciudadano"]
[null,null,"GESTIÓN PARA EL RESULTADO","GR1. Fortalecer las relaciones de las entidades del Sector Hacienda con sus grupos de valor ","SH.Ini.2019.2022.GR1.001 Promover el seguimiento y mejora continua de las acciones que se realizan para fortalecer las relaciones con los grupos de valor en las entidades del Sector Hacienda.","FONDO NACIONAL DEL AHORRO","FONDO NACIONAL DEL AHORRO >PAA 2022> Relacionamiento con el ciudadano","Kennicher Arias Roa","Participar en las mesas sectoriales programadas para las políticas que tienen relación con el Estado -Ciudadano","Las entidades del Sector Hacienda participaran en las mesas sectoriales programadas.\n\nEn el marco de la Ley 2052 de 2020, se integran las políticas de Servicio al Ciudadano, Racionalización de Trámites, Participación Ciudadana y Transparencia; esta última se incorpora dada la importancia que tiene la publicación de la información.\n\nEntregable. Registros de asistencia, presentaciones, informes","N/A","Angelica María Zapata","Helga Viviana Valencia  \nJosé Antonio  Dueñas\nMartha Milena Ramirez ","Oficina de Planeación ","N/A","-","-","-","-","-","-","2022-01-01","2022-12-31","Necesidades del SH","N/A","Gestión con Valores para el Resultado","Transparencia -Participación Ciudadana - Racionalización de Trámites - Servicio al Ciudadano"]
[null,null,"GESTIÓN PARA EL RESULTADO","GR1. Fortalecer las relaciones de las entidades del Sector Hacienda con sus grupos de valor ","SH.Ini.2019.2022.GR1.001 Promover el seguimiento y mejora continua de las acciones que se realizan para fortalecer las relaciones con los grupos de valor en las entidades del Sector Hacienda.","FONDO NACIONAL DEL AHORRO","FONDO NACIONAL DEL AHORRO >PAA 2022> Relacionamiento con el ciudadano","Kennicher Arias Roa","Participar en el ejercicio de innovación abierta denominado OPEN HACIENDA para la formulación de la planeación estratégica  entre otras acciones que requieran de la participación de los grupos de valor.","Participar en el ejercicio de innovación abierta denominado OPEN HACIENDA (suministro y análisis de información).","N/A","Liliana García","Liliana García Velásquez ","Oficina de Planeación ","N/A","-","-","-","-","-","-","2022-01-01","2022-12-31","Necesidades del SH","N/A","Gestión con Valores para el Resultado","Transparencia -Participación Ciudadana - Racionalización de Trámites - Servicio al Ciudadano"]
[null,null,"GESTIÓN PARA EL RESULTADO","GR2.Fortalecer la Gestión TIC y de la Información en las Entidades del Sector Hacienda","SH.Ini.2019.2022.GR2.001 Fortalecer la  Gestión Documental en las entidades del SH","FONDO NACIONAL DEL AHORRO","FONDO NACIONAL DEL AHORRO> PAA 2022>Gestión Documental","Kennicher Arias Roa","Participar en las mesas sectoriales de la política de gestión documental","Participar en las mesas sectoriales de la política de gestión documental, coordinadas por el MHCP.\n\nEntregable. Registros de asistencia",null,"Luis Carlos Castellanos","N/A","División Administrativa ","N/A","-","-","-","-","2021-01-01","2021-12-31","2022-01-01","31/122022","Necesidades del SH","N/A","Información y Comunicación ","Gestión Documental"]
[null,null,"GESTIÓN PARA EL RESULTADO  ","GR1. Fortalecer las relaciones de las entidades del Sector Hacienda con sus grupos de valor ","SH.Ini.2019.2022.GR1.002 Contribuir a la obtención de niveles de excelencia en el ejercicio de la función disciplinaria","FONDO NACIONAL DEL AHORRO","FONDO NACIONAL DEL AHORRO>PAA 2022>Transparencia, acceso a la información y lucha contra la corrupción","Kennicher Arias Roa","Participar en la celebración del día de la transparencia","De acuerdo con el cronograma establecido por el líder sectorial, se participará de la celebración del día de la transparencia",null,"Yolanda Beatriz Riaño Garzón\n","Monica Pedraza \nMónica Bibiana Martínez ","Grupo Gestión Antifraudes","N/A","-","-","-","-","-","-","2022-06-01","2022-12-21","Necesidades del SH","N/A","Información y Comunicación ","Transparencia, Acceso a la Información Pública y Lucha Contra la Corrupción"]
[null,null,"GESTIÓN DE CAPACIDADES INSTITUCIONALES","GCI1. Fortalecer las capacidades del Talento Humano y la Innovación en las entidades del Sector Hacienda","SH.Ini.2019.2022. GCI1.001 Fortalecer la implementación de la política del Talento Humano en las Entidades del Sector Hacienda\n\nSH.Ini.2019.2022.GCI1.002 Fortalecer la implementación de la política de integridad en las Entidades del Sector","FONDO NACIONAL DEL AHORRO","FONDO NACIONAL DEL AHORRO > PAA 2022> Dimensión de Talento Humano","Kennicher Arias Roa","Participar en las mesas sectoriales de la dimensión de Talento Humano.","Participar en las reuniones programadas por el líder sectorial de la política de Talento Humano e Integridad del MHCP y entregar la información requerida para el fortalecimiento y documentación  de estas políticas.","Yolanda Beatriz Riaño Garzón\nyriano@fna.gov.co","Yolanda Beatriz Riaño Garzón\n","Monica Pedraza \nMónica Bibiana Martínez","División Gestión Humana","N/A","-","-","-","-","2021-03-01","2021-12-31","2022-03-01","2022-12-31","Necesidades del SH","N/A","Talento Humano","Talento Humano e Integridad ",null,null,null,null,null,"N/A"]
[null,null,"GESTIÓN DE CAPACIDADES INSTITUCIONALES","GCI1. Fortalecer las capacidades del Talento Humano y la Innovación en las entidades del Sector Hacienda","SH.Ini.2019.2022.GCI1.001 Fortalecer la implementación de la política del Talento Humano en las Entidades del Sector Hacienda\n\nSH.Ini.2019.2022.GCI1.002 Fortalecer la implementación de la política de integridad en las Entidades del Sector","FONDO NACIONAL DEL AHORRO","FONDO NACIONAL DEL AHORRO> PAA 2022> Ruta de Creación de Valor","Kennicher Arias Roa","Participar en las capacitaciones sectoriales de la dimensión de Talento Humano","Participar en las capacitaciones sectoriales de la dimensión de Talento Humano de conformidad con las posibilidades y apoyo de las demás Entidades del Sector según el caso.\n",null,"Yolanda Beatriz Riaño Garzón\n","Monica Pedraza \nMónica Bibiana Martínez","División Gestión Humana","N/A","-","-","-","-","2021-03-01","2021-12-31","2022-03-01","2022-12-31","Necesidades del SH","N/A","Talento Humano","Talento Humano e Integridad "]
[null,218,"GESTIÓN DE CAPACIDADES INSTITUCIONALES","GCI1. Fortalecer las capacidades del Talento Humano y la Innovación en las entidades del Sector Hacienda","SH.Ini.2019.2022. GCI1.001 Fortalecer la implementación de la política del Talento Humano en las Entidades del Sector Hacienda","FONDO NACIONAL DEL AHORRO","FONDO NACIONAL DEL AHORRO> PAA 2022 > Ruta de Creación de Valor","Kennicher Arias Roa","Analizar los resultados de la dimensión de Talento Humano en la medición del  Furag  de la vigencia  2020.","De acuerdo con los resultados obtenidos en la medición del FURAG de la gestión 2020, que realiza el DAFP en la vigencia 2021. Cada entidad del Sector Hacienda, analizará sus resultados y ajustará cuando lo considere pertinente, los planes con el propósito de generar acciones que permitan cerrar brecha, en relación con la política de Talento Humano y de integridad.\nEntregable. Documento que soporte el análisis de los resultados del Furag o planes ajustados.","Monica Bibiana Martinez\nmbmartinezm@fna.gov.co","Kennicher Arias Roa","N/A\n","N/A","-","-","-","-","2021-03-01","2021-11-30","-","2022-03-01","2022-11-30","Necesidades del SH","N/A","Talento Humano","Talento Humano e Integridad "]
[null,null,"GESTIÓN DE CAPACIDADES INSTITUCIONALES","GCI1. Fortalecer las capacidades del Talento Humano y la Innovación en las entidades del Sector Hacienda","SH.Ini.2019.2022.GCI1.003 Fortalecer la implementación de la política de Gestión de Conocimiento e Innovación en las Entidades del Sector","FONDO NACIONAL DEL AHORRO","FONDO NACIONAL DEL AHORRO> PAA 2022> Gestión del conocimiento e innovación","Kennicher Arias Roa","Analizar los resultados de la política de Gestión del Conocimiento y la Innovación en la medición del  Furag  de la vigencia  2021.","De acuerdo con los resultados obtenidos en la medición del FURAG de la gestión 2021, que realiza el DAFP en la vigencia 2022. Cada entidad del Sector Hacienda, analizará sus resultados y ajustará cuando lo considere pertinente, el plan de Gestión del Conocimiento y la Innovación con el propósito de generar acciones que permitan cerrar brecha, según el caso.\n\nEntregable. Documento que soporte el análisis de los resultados del Furag, plan de mejora, plan ajustados o documento que evidencie el ejercicio de análisis.\n",null,"Kennicher Arias Roa","N/A\n","Oficina de Planeación","N/A","-","-","-","-",null,null,"2021-06-01","2021-11-30","Necesidades del SH","N/A","Gestión de Conocimiento e Innovación","Gestión del Conocimiento y la Innovación "]
[null,null,"GESTIÓN DE CAPACIDADES INSTITUCIONALES","GCI1. Fortalecer las capacidades del Talento Humano y la Innovación en las entidades del Sector Hacienda","SH.Ini.2019.2022.GCI1.003 Fortalecer la implementación de la política de Gestión de Conocimiento e Innovación en las Entidades del Sector","FONDO NACIONAL DEL AHORRO","FONDO NACIONAL DE AHORRO> PAA 2022 > Gestión del conocimiento e innovación","Kennicher Arias Roa","Participar en  las mesas sectoriales de la política de Gestión del Conocimiento e innovación","Asistir a las reuniones de trabajo sectorial para fomentar el intercambio de conocimientos e información entre los líderes de la política de Gestión del Conocimiento y la Innovación.\n\nEntregable:  listados de asistencia de dos (2) reuniones en la vigencia 2022 o reporte del MHCP sobre la asistencia de las entidades.\n",null,"Kennicher Arias Roa","N/A\n","Oficina de Planeación","N/A","-","-","-","-","2021-02-01","2021-12-31","2021-02-01","2021-12-31","Necesidades del SH","N/A","Gestión de Conocimiento e Innovación","Gestión del Conocimiento y la Innovación "]
[null,null,"GESTIÓN DE CAPACIDADES INSTITUCIONALES","GCI1. Fortalecer las capacidades del Talento Humano y la Innovación en las entidades del Sector Hacienda","SH.Ini.2019.2022.GCI1.003 Fortalecer la implementación de la política de Gestión de Conocimiento e Innovación en las Entidades del Sector","FONDO NACIONAL DEL AHORRO","FONDO NACIONAL DE AHORRO> PAA 2022 > Gestión del conocimiento e innovación","Kennicher Arias Roa","Participar en la cuarta semana de gestión del conocimiento y la Innovación","Participar en la cuarta semana de gestión del conocimiento y la Innovación",null,"Natalia Bustamante\n","Natalia Bustamante ","Oficina de Planeación","N/A","-","-","-","-","2021-02-01","2021-12-31","2022-06-01","2022-11-30","Necesidades del SH","N/A","Gestión de Conocimiento e Innovación","Gestión del Conocimiento y la Innovación "]
[null,null,"GESTIÓN DE CAPACIDADES INSTITUCIONALES","GCI2. Promover la adecuada administración de los recursos físicos, financieros y la defensa técnica de las Entidades del Sector Hacienda.","SH.Ini.2019.2022.GCI2.002 Desarrollar mecanismos para un adecuado ejercicio de defensa jurídica de las Entidades del Sector Hacienda","FONDO NACIONAL DEL AHORRO","FONDO NACIONAL DEL AHORRO >PAA 2022 > Defensa Jurídica","Kennicher Arias Roa","Construir el reporte de índice de condenas en los estudios y/o análisis que realiza la entidad de los procesos que cursan o hayan cursado en su contra, con el fin de proponer las mejoras o correctivos que se requieran","Realizar el análisis de casos perdidos y ganados. (línea base, pronunciamientos durante la vigencia o anteriores)\n\nElaborar informe cualitativo y analítico a partir del cual se formulen conclusiones concretas con las respectivas propuestas de solución, mejora y/o prevención, según corresponda.\n\nEntregable: (Pte. determinar instrumento) Reporte de índice de condenas\n\nPeriodicidad: una (1) vez al año - Plazo: 30 noviembre 2022",null,"Natalia Bustamante\n","Natalia Bustamante ","Oficina Jurídica","N/A","-","-","-","-","-","-","2022-03-01","2022-12-31","Necesidades del SH","N/A","Gestión con valores para el resultado (Ventanilla hacia adentro)","Defensa Jurídica "]
[null,null,"GESTIÓN DE CAPACIDADES INSTITUCIONALES","GCI2. Promover la adecuada administración de los recursos físicos, financieros y la defensa técnica de las Entidades del Sector Hacienda.","SH.Ini.2019.2022.GCI2.002 Desarrollar mecanismos para un adecuado ejercicio de defensa jurídica de las Entidades del Sector Hacienda","FONDO NACIONAL DEL AHORRO","FONDO NACIONAL DE AHORRO >PAA 2022 > Defensa Jurídica","Kennicher Arias Roa","Participar en las mesas sectoriales de la política de Defensa Jurídica del Sector Hacienda","Participar en dos mesas programadas por el líder sectorial de la política de Defensa Jurídica del MHCP y entregar la información requerida para el fortalecimiento y documentación  de estas políticas.",null,"Natalia Bustamante\n","Natalia Bustamante ","Oficina Jurídica","N/A","-","-","-","-","-","-","2022-01-01","2022-12-31","Necesidades del SH","N/A","Gestión con valores para el resultado (Ventanilla hacia adentro)","Defensa Jurídica "]

{"sheet":"Listas","index":3,"n_rows":26,"n_cols":4,"rows_kept":26,"cut":false,"hidden":true,"merged":[]}
[]
[null,"DIMENSIÓN","N°","POLÍTICAS MIPG"]
[null,"Talento Humano",1,"Planeación Institucional "]
[null,"Direccionamiento Estratégico",2,"Gestión Presupuestal y Eficiencia del Gasto Público  "]
[null,"Gestión con valores para el resultado (Ventanilla hacia afuera)",3,"Talento Humano"]
[null,"Gestión con valores para el resultado (Ventanilla hacia adentro)",4,"Integridad"]
[null,"Gestión con valores para el resultado (Ventanilla hacia afuera-hacia adentro)",5,"Transparencia, Acceso a la Información Pública y Lucha Contra la Corrupción"]
[null,"Evaluación de Resultados",6,"Fortalecimiento Organizacional y Simplificación de Procesos "]
[null,"Información y Comunicación ",7,"Servicio al Ciudadano"]
[null,"Gestión de Conocimiento e Innovación",8,"Participación Ciudadana en la Gestión Pública"]
[null,"Control Interno ",9,"Racionalización de Trámites"]
[null,"N/A",10,"Gestión Documental"]
[null,"Direccionamiento Estratégico\ny Evaluación de Resultados",11,"Gobierno Digital"]
[null,null,12,"Seguridad Digital"]
[null,null,13,"Defensa Jurídica "]
[null,null,14,"Gestión del Conocimiento y la Innovación "]
[null,null,15,"Control Interno"]
[null,null,16,"Seguimiento y Evaluación del Desempeño Institucional "]
[null,null,17,"Mejora Normativa"]
[null,null,18,"Gestión de Información Estadística "]
[null,null,19,"Compras y contratación pública "]
[null,null,null,"N/A"]
[null,null,"Más de una política","Planeación Institucional y Seguimiento  y Evaluación del Desempeño Institucional"]
[null,null,"Más de una política","Transparencia -Participación Ciudadana - Racionalización de Trámites - Servicio al Ciudadano"]
[null,null,"Más de una política","Talento Humano e Integridad "]
[null,null,"Más de una política","Gobierno Digital y Seguridad Digital"]